[Event "*** Titled Tuesday Blitz"]
[Site "Chess.com"]
[Date "2020.10.27"]
[Round "8"]
[White "SanchezKelvin"]
[Black "Morshynska"]
[Result "1-0"]
[WhiteElo "2377"]
[BlackElo "2203"]
[TimeControl "180+1"]
[EndTime "11:29:14 PDT"]
[Termination "SanchezKelvin won on time"]

1. e4 {[%clk 0:03:00.9]} 1... e5 {[%clk 0:02:59.7]} 2. Nf3 {[%clk 0:03:00.7]}
2... Nc6 {[%clk 0:02:53.3]} 3. Bb5 {[%clk 0:02:58.8]} 3... a6 {[%clk 0:02:53.2]}
4. Ba4 {[%clk 0:02:57.4]} 4... Nf6 {[%clk 0:02:53.6]} 5. O-O {[%clk 0:02:54.8]}
5... b5 {[%clk 0:02:53.9]} 6. Bb3 {[%clk 0:02:54.7]} 6... Bb7 {[%clk 0:02:54.5]}
7. c3 {[%clk 0:02:50.9]} 7... Nxe4 {[%clk 0:02:53.1]} 8. Re1 {[%clk 0:02:47.7]}
8... Nc5 {[%clk 0:02:50.7]} 9. Bd5 {[%clk 0:02:36.7]} 9... Ne6 {[%clk
0:02:13.2]} 10. Nxe5 {[%clk 0:02:30.3]} 10... Bd6 {[%clk 0:01:49.4]} 11. Nxc6
{[%clk 0:02:17.8]} 11... Bxc6 {[%clk 0:01:43.4]} 12. Bxc6 {[%clk 0:02:16.7]}
12... dxc6 {[%clk 0:01:44.3]} 13. Qf3 {[%clk 0:02:16.4]} 13... Qd7 {[%clk
0:01:36]} 14. d4 {[%clk 0:02:16]} 14... O-O {[%clk 0:01:35.2]} 15. Nd2 {[%clk
0:02:15.3]} 15... c5 {[%clk 0:01:28.9]} 16. d5 {[%clk 0:02:12.7]} 16... Nf4
{[%clk 0:01:16.7]} 17. Ne4 {[%clk 0:01:51.1]} 17... Nxd5 {[%clk 0:01:08.5]} 18.
Rd1 {[%clk 0:01:50.2]} 18... c6 {[%clk 0:01:01.1]} 19. b3 {[%clk 0:01:25.1]}
19... c4 {[%clk 0:00:44.6]} 20. bxc4 {[%clk 0:01:20.2]} 20... bxc4 {[%clk
0:00:45.5]} 21. a4 {[%clk 0:01:14.7]} 21... Be5 {[%clk 0:00:31.6]} 22. Ba3
{[%clk 0:01:11.9]} 22... Rfd8 {[%clk 0:00:24]} 23. Nc5 {[%clk 0:01:11.5]} 23...
Qc7 {[%clk 0:00:17.4]} 24. Rac1 {[%clk 0:00:49.3]} 24... Bxh2+ {[%clk
0:00:16.4]} 25. Kh1 {[%clk 0:00:49.3]} 25... Bf4 {[%clk 0:00:16.2]} 26. Rc2
{[%clk 0:00:47.9]} 26... Qe5 {[%clk 0:00:12.3]} 27. g3 {[%clk 0:00:46.7]} 27...
Bh6 {[%clk 0:00:11.6]} 28. Kg2 {[%clk 0:00:38.2]} 28... Qg5 {[%clk 0:00:11.5]}
29. Rd4 {[%clk 0:00:36.2]} 29... Qg6 {[%clk 0:00:11.5]} 30. Re2 {[%clk
0:00:34.8]} 30... a5 {[%clk 0:00:11.5]} 31. Rg4 {[%clk 0:00:34.8]} 31... Qb1
{[%clk 0:00:11]} 32. Rxc4 {[%clk 0:00:32.2]} 32... Qa1 {[%clk 0:00:09.7]} 33.
Bb2 {[%clk 0:00:30]} 33... Qa2 {[%clk 0:00:09.4]} 34. Rg4 {[%clk 0:00:28.6]}
34... Qb1 {[%clk 0:00:09.5]} 35. c4 {[%clk 0:00:28.3]} 35... Nb4 {[%clk
0:00:06.2]} 36. Qf6 {[%clk 0:00:24.5]} 36... Qg6 {[%clk 0:00:03.2]} 37. Rxg6
{[%clk 0:00:22.5]} 37... hxg6 {[%clk 0:00:04.1]} 38. Qf3 {[%clk 0:00:21.6]}
38... Rd6 {[%clk 0:00:02.3]} 39. Re7 {[%clk 0:00:20.8]} 39... Rf8 {[%clk
0:00:01.6]} 40. Qc3 {[%clk 0:00:20.5]} 1-0

[Event "*** Titled Tuesday Blitz"]
[Site "Chess.com"]
[Date "2020.10.27"]
[Round "8"]
[White "chessdjw"]
[Black "redbaron8888"]
[Result "1-0"]
[WhiteElo "2653"]
[BlackElo "2511"]
[TimeControl "180+1"]
[EndTime "11:29:15 PDT"]
[Termination "chessdjw won by checkmate"]

1. e4 {[%clk 0:03:00.9]} 1... c5 {[%clk 0:02:30.7]} 2. Nf3 {[%clk 0:02:56.3]}
2... d6 {[%clk 0:02:30.6]} 3. d4 {[%clk 0:02:54.6]} 3... cxd4 {[%clk 0:02:31.5]}
4. Nxd4 {[%clk 0:02:55.2]} 4... Nf6 {[%clk 0:02:31.8]} 5. Nc3 {[%clk 0:02:55.8]}
5... a6 {[%clk 0:02:32.1]} 6. Be3 {[%clk 0:02:54.9]} 6... e5 {[%clk 0:02:30.8]}
7. Nf3 {[%clk 0:02:53.8]} 7... h6 {[%clk 0:02:28.2]} 8. Bc4 {[%clk 0:02:51.5]}
8... Be7 {[%clk 0:02:28.2]} 9. O-O {[%clk 0:02:47.1]} 9... O-O {[%clk 0:02:26]}
10. Qe2 {[%clk 0:02:40.9]} 10... Be6 {[%clk 0:02:25.2]} 11. Rfd1 {[%clk
0:02:40.1]} 11... Nbd7 {[%clk 0:02:24.7]} 12. Nd2 {[%clk 0:02:26.6]} 12... b5
{[%clk 0:02:21.9]} 13. Bb3 {[%clk 0:02:22.3]} 13... Qe8 {[%clk 0:02:07.7]} 14.
Nf1 {[%clk 0:02:19.5]} 14... Rc8 {[%clk 0:01:56.4]} 15. Ng3 {[%clk 0:02:14.7]}
15... Nc5 {[%clk 0:01:53]} 16. h3 {[%clk 0:02:07.8]} 16... b4 {[%clk 0:01:51.7]}
17. Nd5 {[%clk 0:02:01.2]} 17... Nfxe4 {[%clk 0:01:30.1]} 18. Nxe4 {[%clk
0:01:55.4]} 18... Nxe4 {[%clk 0:01:31]} 19. Qxa6 {[%clk 0:01:47.3]} 19... Bg5
{[%clk 0:01:26.1]} 20. Bxg5 {[%clk 0:01:43.3]} 20... hxg5 {[%clk 0:01:23.5]} 21.
Qb7 {[%clk 0:00:31.6]} 21... Rb8 {[%clk 0:01:12.7]} 22. Ne7+ {[%clk 0:00:31]}
22... Kh7 {[%clk 0:01:06.4]} 23. Ng6 {[%clk 0:00:31.5]} 23... Kxg6 {[%clk
0:00:52.8]} 24. Qxe4+ {[%clk 0:00:28.7]} 24... f5 {[%clk 0:00:44.3]} 25. Qe3
{[%clk 0:00:17.6]} 25... Bxb3 {[%clk 0:00:41.9]} 26. axb3 {[%clk 0:00:14]} 26...
Rf6 {[%clk 0:00:39.4]} 27. Ra6 {[%clk 0:00:14.3]} 27... Qe7 {[%clk 0:00:29.7]}
28. Ra7 {[%clk 0:00:11.6]} 28... Rb7 {[%clk 0:00:28.4]} 29. Ra6 {[%clk 0:00:10]}
29... Rd7 {[%clk 0:00:24.7]} 30. Rd5 {[%clk 0:00:09.5]} 30... e4 {[%clk
0:00:20.6]} 31. Rb6 {[%clk 0:00:08.8]} 31... f4 {[%clk 0:00:20.1]} 32. Qe2
{[%clk 0:00:07.7]} 32... Qe6 {[%clk 0:00:19.4]} 33. Rbb5 {[%clk 0:00:07.2]}
33... e3 {[%clk 0:00:18.2]} 34. Rxg5+ {[%clk 0:00:07.4]} 34... Kf7 {[%clk
0:00:17]} 35. Qh5+ {[%clk 0:00:07.8]} 35... Ke7 {[%clk 0:00:15.3]} 36. Rxg7+
{[%clk 0:00:07.8]} 36... Kd8 {[%clk 0:00:15.8]} 37. Qh8+ {[%clk 0:00:05.3]}
37... Kc7 {[%clk 0:00:15.9]} 38. Qb8+ {[%clk 0:00:05.3]} 38... Kc6 {[%clk
0:00:14.6]} 39. Qb6# {[%clk 0:00:05.9]} 1-0

[Event "*** Titled Tuesday Blitz"]
[Site "Chess.com"]
[Date "2020.10.27"]
[Round "8"]
[White "Andreikka"]
[Black "Semen_Khanin"]
[Result "1-0"]
[WhiteElo "2921"]
[BlackElo "2773"]
[TimeControl "180+1"]
[EndTime "11:29:16 PDT"]
[Termination "Andreikka won by resignation"]

1. e4 {[%clk 0:03:00.9]} 1... e5 {[%clk 0:02:59.6]} 2. Nf3 {[%clk 0:03:00.9]}
2... Nc6 {[%clk 0:02:59.9]} 3. Bb5 {[%clk 0:03:00.6]} 3... Nf6 {[%clk
0:02:55.3]} 4. d3 {[%clk 0:02:58.8]} 4... d6 {[%clk 0:02:53.9]} 5. c3 {[%clk
0:02:57.3]} 5... a6 {[%clk 0:02:50.7]} 6. Ba4 {[%clk 0:02:57.3]} 6... g6 {[%clk
0:02:51]} 7. O-O {[%clk 0:02:56.7]} 7... Bg7 {[%clk 0:02:51.3]} 8. Re1 {[%clk
0:02:55.2]} 8... O-O {[%clk 0:02:51.2]} 9. Nbd2 {[%clk 0:02:55.8]} 9... Re8
{[%clk 0:02:48.9]} 10. Nf1 {[%clk 0:02:54.7]} 10... h6 {[%clk 0:02:42.7]} 11. h3
{[%clk 0:02:42.8]} 11... b5 {[%clk 0:02:42.2]} 12. Bc2 {[%clk 0:02:40.5]} 12...
Bb7 {[%clk 0:02:41]} 13. Ng3 {[%clk 0:02:36.8]} 13... Nb8 {[%clk 0:02:41.1]} 14.
d4 {[%clk 0:02:33.3]} 14... Nbd7 {[%clk 0:02:40.3]} 15. a4 {[%clk 0:02:31]}
15... c5 {[%clk 0:02:29.5]} 16. d5 {[%clk 0:02:28.3]} 16... c4 {[%clk
0:02:28.7]} 17. Be3 {[%clk 0:02:27.9]} 17... Qc7 {[%clk 0:02:28.1]} 18. Qd2
{[%clk 0:02:26.2]} 18... Kh7 {[%clk 0:02:28.5]} 19. Ra3 {[%clk 0:02:17.9]} 19...
Nc5 {[%clk 0:02:25.4]} 20. Rea1 {[%clk 0:02:17.7]} 20... Nfd7 {[%clk 0:02:24.6]}
21. h4 {[%clk 0:02:10.6]} 21... Nb6 {[%clk 0:02:19.6]} 22. axb5 {[%clk
0:01:58.6]} 22... axb5 {[%clk 0:02:19.8]} 23. h5 {[%clk 0:01:59.2]} 23... Rxa3
{[%clk 0:02:19.2]} 24. Rxa3 {[%clk 0:01:59]} 24... Ra8 {[%clk 0:02:19.4]} 25.
Rxa8 {[%clk 0:01:56.8]} 25... Bxa8 {[%clk 0:02:18.4]} 26. Nh2 {[%clk 0:01:56.4]}
26... Nb3 {[%clk 0:01:36.1]} 27. Qd1 {[%clk 0:01:47.1]} 27... Na4 {[%clk
0:01:25.3]} 28. Bxb3 {[%clk 0:01:39.4]} 28... cxb3 {[%clk 0:01:25.5]} 29. Qxb3
{[%clk 0:01:40.3]} 29... Qc4 {[%clk 0:01:25.4]} 30. Qa3 {[%clk 0:01:41]} 30...
Bb7 {[%clk 0:00:54.4]} 31. hxg6+ {[%clk 0:01:32.7]} 31... fxg6 {[%clk 0:00:54]}
32. Qxd6 {[%clk 0:01:23.2]} 32... Nxb2 {[%clk 0:00:53.8]} 33. Ng4 {[%clk
0:01:23.8]} 33... Qc8 {[%clk 0:00:47.8]} 34. Nf6+ {[%clk 0:01:23.3]} 34... Kh8
{[%clk 0:00:45.1]} 35. Qe7 {[%clk 0:01:23.7]} 35... Qf8 {[%clk 0:00:39.9]} 36.
Qxb7 {[%clk 0:01:23.4]} 36... Qxf6 {[%clk 0:00:36.8]} 37. Qxb5 {[%clk
0:00:54.6]} 37... Nd1 {[%clk 0:00:36.9]} 38. Bc5 {[%clk 0:00:55.2]} 38... h5
{[%clk 0:00:35.5]} 39. Qd3 {[%clk 0:00:43.6]} 39... Nb2 {[%clk 0:00:35.1]} 40.
Qc2 {[%clk 0:00:36.8]} 40... Nc4 {[%clk 0:00:33.9]} 41. Qa2 {[%clk 0:00:37.4]}
41... Nd6 {[%clk 0:00:20.1]} 42. Qa6 {[%clk 0:00:36.1]} 42... Nxe4 {[%clk
0:00:13.1]} 43. Qc8+ {[%clk 0:00:33.9]} 43... Kh7 {[%clk 0:00:13.6]} 44. Nxe4
{[%clk 0:00:33.7]} 44... Qf4 {[%clk 0:00:14.3]} 45. f3 {[%clk 0:00:31.8]} 45...
Qc1+ {[%clk 0:00:14.4]} 46. Kh2 {[%clk 0:00:32.3]} 46... Qf4+ {[%clk 0:00:14.6]}
47. g3 {[%clk 0:00:30.1]} 47... Qxf3 {[%clk 0:00:14]} 48. Ng5+ {[%clk
0:00:29.9]} 1-0

[Event "*** Titled Tuesday Blitz"]
[Site "Chess.com"]
[Date "2020.10.27"]
[Round "8"]
[White "Aleksey_Sorokin"]
[Black "Joshukid"]
[Result "1/2-1/2"]
[WhiteElo "2833"]
[BlackElo "2704"]
[TimeControl "180+1"]
[EndTime "11:29:18 PDT"]
[Termination "Game drawn - insufficient material"]

1. d4 {[%clk 0:03:00.9]} 1... g6 {[%clk 0:02:54.3]} 2. c4 {[%clk 0:02:56.3]}
2... Bg7 {[%clk 0:02:54.5]} 3. Nf3 {[%clk 0:02:53]} 3... d6 {[%clk 0:02:54.6]}
4. Nc3 {[%clk 0:02:53.1]} 4... e5 {[%clk 0:02:48.8]} 5. dxe5 {[%clk 0:02:54]}
5... dxe5 {[%clk 0:02:49.7]} 6. Qxd8+ {[%clk 0:02:54]} 6... Kxd8 {[%clk
0:02:50.6]} 7. g3 {[%clk 0:02:54.7]} 7... Be6 {[%clk 0:02:48.2]} 8. Bg2 {[%clk
0:02:49.8]} 8... Bxc4 {[%clk 0:02:44.6]} 9. Nxe5 {[%clk 0:02:44.3]} 9... Bxe5
{[%clk 0:02:44.7]} 10. Bxb7 {[%clk 0:02:44.7]} 10... c6 {[%clk 0:02:45]} 11.
Bxa8 {[%clk 0:02:44]} 11... Kc7 {[%clk 0:02:40.8]} 12. Bf4 {[%clk 0:02:33.8]}
12... Bxf4 {[%clk 0:02:34.8]} 13. gxf4 {[%clk 0:02:34.7]} 13... Ne7 {[%clk
0:02:27.6]} 14. Rc1 {[%clk 0:02:14.2]} 14... Nd7 {[%clk 0:02:24]} 15. b3 {[%clk
0:02:09.3]} 15... Ba6 {[%clk 0:02:06.2]} 16. Nd5+ {[%clk 0:02:07.1]} 16... Nxd5
{[%clk 0:02:06.6]} 17. Rxc6+ {[%clk 0:02:06.5]} 17... Kb8 {[%clk 0:02:05.8]} 18.
Rxa6 {[%clk 0:02:06.5]} 18... Kxa8 {[%clk 0:02:05]} 19. Rd6 {[%clk 0:02:04.3]}
19... N7b6 {[%clk 0:02:00.8]} 20. e3 {[%clk 0:02:04]} 20... Kb7 {[%clk
0:01:56.7]} 21. e4 {[%clk 0:01:59.2]} 21... Nxf4 {[%clk 0:01:40.8]} 22. Rf6
{[%clk 0:01:58.3]} 22... Nd3+ {[%clk 0:01:34.6]} 23. Ke2 {[%clk 0:01:58]} 23...
Ne5 {[%clk 0:01:33.8]} 24. f4 {[%clk 0:01:57.9]} 24... Nc6 {[%clk 0:01:24.5]}
25. Rxf7+ {[%clk 0:01:56.7]} 25... Ka6 {[%clk 0:01:24.2]} 26. Rd1 {[%clk
0:01:56]} 26... Re8 {[%clk 0:01:21.2]} 27. Ke3 {[%clk 0:01:53.2]} 27... Re7
{[%clk 0:01:15.2]} 28. Rxe7 {[%clk 0:01:52.4]} 28... Nxe7 {[%clk 0:01:16.1]} 29.
h4 {[%clk 0:01:52.2]} 29... Kb7 {[%clk 0:01:15.8]} 30. h5 {[%clk 0:01:45.6]}
30... Kc7 {[%clk 0:01:14.3]} 31. hxg6 {[%clk 0:01:42.7]} 31... hxg6 {[%clk
0:01:15.2]} 32. Rh1 {[%clk 0:01:42]} 32... Kd6 {[%clk 0:01:12.4]} 33. Rh8 {[%clk
0:01:41.9]} 33... Nd7 {[%clk 0:01:07.6]} 34. Ra8 {[%clk 0:01:38.3]} 34... Nc6
{[%clk 0:01:08.1]} 35. Kf3 {[%clk 0:01:34.3]} 35... Ke6 {[%clk 0:01:06.6]} 36.
Rg8 {[%clk 0:01:29.5]} 36... Ne7 {[%clk 0:01:04.8]} 37. Rh8 {[%clk 0:01:27.7]}
37... Nc6 {[%clk 0:00:55.6]} 38. Re8+ {[%clk 0:01:24.3]} 38... Kf7 {[%clk
0:00:43.1]} 39. Rc8 {[%clk 0:01:21.6]} 39... Nd4+ {[%clk 0:00:36.1]} 40. Ke3
{[%clk 0:01:21]} 40... Nb5 {[%clk 0:00:37]} 41. a4 {[%clk 0:01:19.7]} 41... Nd6
{[%clk 0:00:37.1]} 42. Rc7 {[%clk 0:01:19]} 42... Ke6 {[%clk 0:00:37.4]} 43.
Rxa7 {[%clk 0:01:18.7]} 43... Nc5 {[%clk 0:00:37.7]} 44. b4 {[%clk 0:01:10.5]}
44... Ncxe4 {[%clk 0:00:38]} 45. a5 {[%clk 0:01:09.8]} 45... Nc3 {[%clk
0:00:37.3]} 46. Ra8 {[%clk 0:00:53.6]} 46... Nd5+ {[%clk 0:00:37.2]} 47. Kd4
{[%clk 0:00:52.8]} 47... Nxb4 {[%clk 0:00:37.5]} 48. a6 {[%clk 0:00:51.1]} 48...
Nb5+ {[%clk 0:00:28.2]} 49. Kc4 {[%clk 0:00:39.6]} 49... Nc7 {[%clk 0:00:28.7]}
50. Rg8 {[%clk 0:00:33.4]} 50... Nbxa6 {[%clk 0:00:29]} 51. Rxg6+ {[%clk
0:00:32.7]} 51... Kf5 {[%clk 0:00:29.6]} 52. Rxa6 {[%clk 0:00:30.2]} 52... Nxa6
{[%clk 0:00:30]} 53. Kd3 {[%clk 0:00:30.9]} 53... Kxf4 {[%clk 0:00:30.6]}
1/2-1/2

[Event "*** Titled Tuesday Blitz"]
[Site "Chess.com"]
[Date "2020.10.27"]
[Round "8"]
[White "AldokhinIvan"]
[Black "ASVZ"]
[Result "0-1"]
[WhiteElo "2567"]
[BlackElo "2475"]
[TimeControl "180+1"]
[EndTime "11:29:21 PDT"]
[Termination "ASVZ won by checkmate"]

1. d4 {[%clk 0:00:58.7]} 1... e6 {[%clk 0:03:00.9]} 2. c4 {[%clk 0:00:57.8]}
2... b6 {[%clk 0:03:00.7]} 3. a3 {[%clk 0:00:56.9]} 3... Bb7 {[%clk 0:03:01]} 4.
Nc3 {[%clk 0:00:57.2]} 4... f5 {[%clk 0:03:01.5]} 5. d5 {[%clk 0:00:57.4]} 5...
Nf6 {[%clk 0:03:02.3]} 6. g3 {[%clk 0:00:57.2]} 6... g6 {[%clk 0:03:02.2]} 7.
Bg2 {[%clk 0:00:57.5]} 7... Bg7 {[%clk 0:03:02.9]} 8. Nh3 {[%clk 0:00:57.6]}
8... O-O {[%clk 0:03:03.1]} 9. O-O {[%clk 0:00:57.7]} 9... a5 {[%clk 0:03:03]}
10. Re1 {[%clk 0:00:38.5]} 10... Na6 {[%clk 0:03:03]} 11. b3 {[%clk 0:00:34.8]}
11... Nc5 {[%clk 0:03:02.6]} 12. Bb2 {[%clk 0:00:34]} 12... Re8 {[%clk
0:03:02.1]} 13. b4 {[%clk 0:00:29.1]} 13... axb4 {[%clk 0:02:19.2]} 14. axb4
{[%clk 0:00:28.5]} 14... Rxa1 {[%clk 0:02:19.1]} 15. Qxa1 {[%clk 0:00:25]} 15...
Nb3 {[%clk 0:02:15.7]} 16. Qa2 {[%clk 0:00:22.9]} 16... Nd4 {[%clk 0:02:08.3]}
17. Rd1 {[%clk 0:00:17.3]} 17... c5 {[%clk 0:01:49.4]} 18. bxc5 {[%clk
0:00:11.4]} 18... bxc5 {[%clk 0:01:49.1]} 19. dxe6 {[%clk 0:00:10.3]} 19... Bxg2
{[%clk 0:01:47.6]} 20. Kxg2 {[%clk 0:00:11.1]} 20... Rxe6 {[%clk 0:01:41.7]} 21.
e3 {[%clk 0:00:11.1]} 21... Nc6 {[%clk 0:01:40]} 22. Nd5 {[%clk 0:00:10.9]}
22... Nb4 {[%clk 0:01:27.8]} 23. Nxb4 {[%clk 0:00:09.4]} 23... cxb4 {[%clk
0:01:27.5]} 24. c5 {[%clk 0:00:09.8]} 24... Kf8 {[%clk 0:01:13.4]} 25. Ng5
{[%clk 0:00:09.5]} 25... Rc6 {[%clk 0:00:56.2]} 26. Rd6 {[%clk 0:00:08.7]} 26...
Qe7 {[%clk 0:00:34.2]} 27. Bxf6 {[%clk 0:00:07.9]} 27... Bxf6 {[%clk 0:00:34.3]}
28. Qa8+ {[%clk 0:00:06.3]} 28... Kg7 {[%clk 0:00:33.2]} 29. Rxc6 {[%clk
0:00:06.8]} 29... dxc6 {[%clk 0:00:33.4]} 30. Qxc6 {[%clk 0:00:07.3]} 30... Bxg5
{[%clk 0:00:33.4]} 31. Qb5 {[%clk 0:00:07]} 31... Qe4+ {[%clk 0:00:28.1]} 32. f3
{[%clk 0:00:07.1]} 32... Qc2+ {[%clk 0:00:18.6]} 33. Kh3 {[%clk 0:00:06]} 33...
b3 {[%clk 0:00:18.2]} 34. Qb7+ {[%clk 0:00:05.3]} 34... Kh6 {[%clk 0:00:18.5]}
35. Qb8 {[%clk 0:00:03]} 35... Bf6 {[%clk 0:00:17.4]} 36. Qf4+ {[%clk 0:00:03]}
36... g5 {[%clk 0:00:15.9]} 37. Qd6 {[%clk 0:00:03.1]} 37... Kg6 {[%clk
0:00:16.1]} 38. c6 {[%clk 0:00:03.5]} 38... b2 {[%clk 0:00:16.4]} 39. c7 {[%clk
0:00:03.7]} 39... b1=Q {[%clk 0:00:16.9]} 40. Qd5 {[%clk 0:00:04.1]} 40... Qf1#
{[%clk 0:00:16.7]} 0-1

[Event "*** Titled Tuesday Blitz"]
[Site "Chess.com"]
[Date "2020.10.27"]
[Round "8"]
[White "maxip32"]
[Black "Ajedrez_con_German"]
[Result "1-0"]
[WhiteElo "2428"]
[BlackElo "2541"]
[TimeControl "180+1"]
[EndTime "11:29:22 PDT"]
[Termination "maxip32 won on time"]

1. e4 {[%clk 0:02:40.4]} 1... e5 {[%clk 0:02:59.8]} 2. Nf3 {[%clk 0:02:39.1]}
2... Nc6 {[%clk 0:03:00.1]} 3. Bc4 {[%clk 0:02:37.4]} 3... Bc5 {[%clk 0:02:59]}
4. O-O {[%clk 0:02:35.4]} 4... Nf6 {[%clk 0:02:55.9]} 5. d3 {[%clk 0:02:35]}
5... d6 {[%clk 0:02:53.1]} 6. c3 {[%clk 0:02:33.8]} 6... a6 {[%clk 0:02:52.2]}
7. a4 {[%clk 0:02:33.1]} 7... O-O {[%clk 0:02:47.8]} 8. Na3 {[%clk 0:02:21.7]}
8... Ba7 {[%clk 0:02:37.5]} 9. Nc2 {[%clk 0:02:21.2]} 9... Be6 {[%clk
0:02:29.6]} 10. Bxe6 {[%clk 0:02:18]} 10... fxe6 {[%clk 0:02:29.8]} 11. Be3
{[%clk 0:02:18.6]} 11... Bxe3 {[%clk 0:02:16.7]} 12. Nxe3 {[%clk 0:02:19.5]}
12... Qe7 {[%clk 0:02:07.5]} 13. Re1 {[%clk 0:02:03.6]} 13... h6 {[%clk
0:01:57.6]} 14. Nc4 {[%clk 0:01:43.7]} 14... Qf7 {[%clk 0:01:46.9]} 15. Qc2
{[%clk 0:01:22.6]} 15... Nh5 {[%clk 0:01:42.8]} 16. Re3 {[%clk 0:01:12.2]} 16...
Nf4 {[%clk 0:01:38.1]} 17. g3 {[%clk 0:01:06.3]} 17... Qh5 {[%clk 0:01:29.2]}
18. Qd1 {[%clk 0:00:32.8]} 18... Rf6 {[%clk 0:01:04.5]} 19. gxf4 {[%clk
0:00:20.1]} 19... exf4 {[%clk 0:00:58.2]} 20. Re1 {[%clk 0:00:19.5]} 20... g5
{[%clk 0:00:17.3]} 21. Kh1 {[%clk 0:00:19.5]} 21... g4 {[%clk 0:00:16.3]} 22.
Rg1 {[%clk 0:00:19.6]} 22... Kh8 {[%clk 0:00:15]} 23. Ne1 {[%clk 0:00:18.4]}
23... f3 {[%clk 0:00:11.9]} 24. Rg3 {[%clk 0:00:16.3]} 24... Ne5 {[%clk
0:00:09.8]} 25. Qd2 {[%clk 0:00:15.5]} 25... Ng6 {[%clk 0:00:07.4]} 26. Nc2
{[%clk 0:00:11.1]} 26... Rg8 {[%clk 0:00:02.5]} 27. Rag1 {[%clk 0:00:10.3]}
27... Nf4 {[%clk 0:00:03]} 28. N4e3 {[%clk 0:00:09.8]} 28... Ng2 {[%clk
0:00:03.2]} 29. Nxg2 {[%clk 0:00:09.3]} 29... fxg2+ {[%clk 0:00:03.3]} 30. R1xg2
{[%clk 0:00:10.2]} 30... Rf7 {[%clk 0:00:02.4]} 31. Ne3 {[%clk 0:00:10.3]} 31...
Rgf8 {[%clk 0:00:02.3]} 32. Nxg4 {[%clk 0:00:10.1]} 32... Rh7 {[%clk 0:00:02.1]}
33. Qe3 {[%clk 0:00:08.5]} 33... Qh4 {[%clk 0:00:01.8]} 34. f3 {[%clk
0:00:08.6]} 34... h5 {[%clk 0:00:02.3]} 35. Nf2 {[%clk 0:00:08.8]} 35... Qf6
{[%clk 0:00:02.3]} 36. Qg5 {[%clk 0:00:08.8]} 36... Qxf3 {[%clk 0:00:02.4]} 37.
Qg8+ {[%clk 0:00:07.9]} 1-0

[Event "*** Titled Tuesday Blitz"]
[Site "Chess.com"]
[Date "2020.10.27"]
[Round "8"]
[White "AnnaChessLook"]
[Black "TurboSteen"]
[Result "1-0"]
[WhiteElo "2240"]
[BlackElo "2043"]
[TimeControl "180+1"]
[EndTime "11:29:23 PDT"]
[Termination "AnnaChessLook won on time"]

1. d4 {[%clk 0:03:00.9]} 1... Nf6 {[%clk 0:02:58.4]} 2. c4 {[%clk 0:02:56.2]}
2... g6 {[%clk 0:02:57.7]} 3. Nc3 {[%clk 0:02:54.9]} 3... d5 {[%clk 0:02:58]} 4.
Nf3 {[%clk 0:02:53.6]} 4... Bg7 {[%clk 0:02:56.4]} 5. Bg5 {[%clk 0:02:52.7]}
5... dxc4 {[%clk 0:01:58.5]} 6. e4 {[%clk 0:02:45.4]} 6... c5 {[%clk 0:01:55.2]}
7. d5 {[%clk 0:02:42.1]} 7... b5 {[%clk 0:01:22.4]} 8. e5 {[%clk 0:02:36.3]}
8... b4 {[%clk 0:01:15.2]} 9. exf6 {[%clk 0:02:16.7]} 9... exf6 {[%clk
0:01:14.2]} 10. Qe2+ {[%clk 0:01:33.5]} 10... Kf8 {[%clk 0:01:11.9]} 11. Be3
{[%clk 0:01:23.1]} 11... bxc3 {[%clk 0:01:08.7]} 12. Bxc5+ {[%clk 0:01:22.9]}
12... Kg8 {[%clk 0:01:02.6]} 13. bxc3 {[%clk 0:01:21.1]} 13... f5 {[%clk
0:01:02]} 14. Bd4 {[%clk 0:01:18.3]} 14... Bxd4 {[%clk 0:00:59.8]} 15. Nxd4
{[%clk 0:01:19.2]} 15... Qxd5 {[%clk 0:00:53.3]} 16. Qxc4 {[%clk 0:01:03.2]}
16... Qe5+ {[%clk 0:00:52.3]} 17. Be2 {[%clk 0:01:01.8]} 17... Ba6 {[%clk
0:00:47.9]} 18. Qa4 {[%clk 0:00:50]} 18... Bxe2 {[%clk 0:00:34.6]} 19. Nxe2
{[%clk 0:00:50.9]} 19... Kg7 {[%clk 0:00:33.6]} 20. Qd4 {[%clk 0:00:47.9]} 20...
Re8 {[%clk 0:00:30.7]} 21. Qxe5+ {[%clk 0:00:41.6]} 21... Rxe5 {[%clk
0:00:29.2]} 22. f4 {[%clk 0:00:40.3]} 22... Re4 {[%clk 0:00:25]} 23. Kf2 {[%clk
0:00:37.7]} 23... Nc6 {[%clk 0:00:21]} 24. Rhd1 {[%clk 0:00:37.8]} 24... Rae8
{[%clk 0:00:18.5]} 25. Rd2 {[%clk 0:00:37.8]} 25... Na5 {[%clk 0:00:16.5]} 26.
g3 {[%clk 0:00:38.1]} 26... Nc4 {[%clk 0:00:15.9]} 27. Rc2 {[%clk 0:00:38.1]}
27... Ne3 {[%clk 0:00:15.5]} 28. Rb2 {[%clk 0:00:36.7]} 28... Ng4+ {[%clk
0:00:14.9]} 29. Kf3 {[%clk 0:00:33]} 29... Nxh2+ {[%clk 0:00:13.9]} 30. Kf2
{[%clk 0:00:33]} 30... Ng4+ {[%clk 0:00:13.4]} 31. Kf1 {[%clk 0:00:33.5]} 31...
Ne3+ {[%clk 0:00:10.5]} 32. Kf2 {[%clk 0:00:33.9]} 32... Ng4+ {[%clk 0:00:10.1]}
33. Ke1 {[%clk 0:00:32.8]} 33... Re3 {[%clk 0:00:08]} 34. c4 {[%clk 0:00:28.5]}
34... Nh2 {[%clk 0:00:06.8]} 35. c5 {[%clk 0:00:22.8]} 35... Rc3 {[%clk
0:00:05.3]} 36. Kf2 {[%clk 0:00:19]} 36... Rxc5 {[%clk 0:00:04.3]} 37. Nd4
{[%clk 0:00:19.5]} 37... Rd5 {[%clk 0:00:03.6]} 38. Nb3 {[%clk 0:00:18.5]} 38...
Ng4+ {[%clk 0:00:03.2]} 39. Kg1 {[%clk 0:00:16.9]} 39... Re3 {[%clk 0:00:01.7]}
40. Kg2 {[%clk 0:00:17.1]} 1-0